[Event "44th Chess Olympiad Open 2022"]
[Site "Chennai"]
[Date "2022.08.09"]
[Round "11.42"]
[White "Ahmad, Al Khatib"]
[Black "Bastidas Rodriguez, Emilio"]
[Result "1-0"]
[ECO "B84"]
[WhiteElo "2244"]
[BlackElo "2351"]
[Annotator "RC"]
[PlyCount "49"]
[EventDate "2022.07.29"]
[EventType "team-tourn"]
[EventCountry "IND"]
[SourceTitle "playchess.com"]
[Source "ChessBase"]
[SourceQuality "1"]
[WhiteTeam "Jordan"]
[BlackTeam "Ecuador"]
[WhiteTeamCountry "JOR"]
[BlackTeamCountry "ECU"]
[TimeControl "40/5400+30:1800+30"]

1. e4 {[%emt 0:01:17]} c5 {[%emt 0:01:04]} 2. Nf3 {[%emt 0:00:07]} d6 {[%emt 0:00:32]} 3. d4 {[%emt 0:00:07]} cxd4 {[%emt 0:00:02]} 4. Nxd4 {[%emt 0:00:04]} Nf6 {[%emt 0:00:27]} 5. Nc3 {[%emt 0:00:06]} a6 {[%emt 0:00:02]} 6. Be2 {[%emt 0:00:09]} e6 {[%emt 0:01:19]} 7. Be3 {[%emt 0:00:28]} Nbd7 {[%emt 0:00:29]} 8. g4 {[%emt 0:02:09]} h6 {[%emt 0:00:33]} 9. f4 {[%emt 0:18:07]} g5 {[%emt 0:04:44]} 10. fxg5 {[%emt 0:04:26]} hxg5 {[%emt 0:00:03]} 11. Bxg5 {[%emt 0:01:48]} Be7 {[%emt 0:00:22]} 12. Qd2 {[%emt 0:11:31]} Ne5 {[%emt 0:00:23]} 13. O-O-O {[%emt 0:04:45]} Nfxg4 {[%emt 0:05:28]} 14. Bxe7 {[%emt 0:01:09]} Qxe7 {[%emt 0:00:03]} 15. Bxg4 {[%emt 0:06:01]} Nxg4 {[%emt 0:00:03]} 16. Nf5 {[%emt 0:09:39]} exf5 {[%emt 0:00:29]} 17. Nd5 {[%emt 0:00:08]} Qd8 {[%emt 0:01:52]} 18. Qc3 {[%emt 0:00:25]} f6 {[%emt 0:10:50]} 19. Nc7+ {[%emt 0:05:50]} Ke7 {[%emt 0:01:49]} 20. Nxa8 {[%emt 0:04:31]} fxe4 {[%emt 0:00:28]} 21. Nc7 {[%emt 0:01:00]} Ne5 {[%emt 0:07:51]} 22. Nd5+ {[%emt 0:04:22]} Ke8 {[%emt 0:03:16]} 23. Nxf6+ {[%emt 0:02:03]} Qxf6 {[%emt 0:04:02]} 24. Qxc8+ {[%emt 0:00:11]} Qd8 {[%emt 0:00:05]} 25. Qe6+ {[%emt 0:01:43]} 1-0

[Event "44th Chess Olympiad Open 2022"]
[Site "Chennai"]
[Date "2022.08.09"]
[Round "11.42"]
[White "Ibrahim Alwahsh"]
[Black "Esmeraldas Huachi, Anderson"]
[Result "0-1"]
[ECO "A08"]
[WhiteElo "2058"]
[BlackElo "2071"]
[Annotator "NA RC"]
[PlyCount "98"]
[EventDate "2022.07.29"]
[EventType "team-tourn"]
[EventCountry "IND"]
[SourceTitle "playchess.com"]
[Source "ChessBase"]
[SourceQuality "1"]
[WhiteTeam "Jordan"]
[BlackTeam "Ecuador"]
[WhiteTeamCountry "JOR"]
[BlackTeamCountry "ECU"]
[TimeControl "40/5400+30:1800+30"]

1. Nf3 {[%emt 0:00:21]} d5 {[%emt 0:00:10]} 2. g3 {[%emt 0:00:05]} c5 {[%emt 0:00:06]} 3. Bg2 {[%emt 0:00:05]} Nf6 {[%emt 0:00:08]} 4. O-O {[%emt 0:00:08]} e6 {[%emt 0:01:19]} 5. b3 {[%emt 0:00:29]} g6 {[%emt 0:02:37]} 6. Bb2 {[%emt 0:00:12]} Bg7 {[%emt 0:00:09]} 7. e3 {[%emt 0:05:05]} O-O {[%emt 0:00:21]} 8. d3 {[%emt 0:00:26]} b6 {[%emt 0:05:37]} 9. Nbd2 {[%emt 0:01:21]} Bb7 {[%emt 0:03:11]} 10. a3 {[%emt 0:11:15]} Nbd7 {[%emt 0:00:34]} 11. Ra2 {[%emt 0:00:19]} Qc7 {[%emt 0:00:52]} 12. Qa1 {[%emt 0:00:29]} Nh5 {[%emt 0:03:54]} 13. Bxg7 {[%emt 0:03:09]} Nxg7 {[%emt 0:00:07]} 14. d4 {[%emt 0:06:28]} cxd4 {[%emt 0:02:56]} 15. exd4 {[%emt 0:00:16]} Rac8 {[%emt 0:08:56]} 16. c4 {[%emt 0:15:06]} dxc4 {[%emt 0:03:34]} 17. bxc4 {[%emt 0:02:10]} Qb8 {[%emt 0:02:11]} 18. a4 {[%emt 0:02:45]} a5 {[%emt 0:01:00]} 19. Rb1 {[%emt 0:02:28]} Rc7 {[%emt 0:07:39]} 20. Rab2 {[%emt 0:04:12]} Qa8 {[%emt 0:00:18]} 21. Qa3 {[%emt 0:03:58]} Nf5 {[%emt 0:00:58]} 22. Bh3 {[%emt 0:02:52]} Bxf3 {[%emt 0:01:50]} 23. Qxf3 {[%emt 0:19:16]} Qxf3 {[%emt 0:00:13]} 24. Nxf3 {[%emt 0:00:11]} Rxc4 {[%emt 0:00:04]} 25. Bxf5 {[%emt 0:03:26]} exf5 {[%emt 0:07:16]} 26. Ne5 {[%emt 0:00:19]} Nxe5 {[%emt 0:01:02]} 27. dxe5 {[%emt 0:00:07]} Rxa4 {[%emt 0:03:42]} 28. Rxb6 {[%emt 0:00:30]} Re4 {[%emt 0:00:15]} 29. f4 {[%emt 0:00:45]} Re2 {[%emt 0:16:23]} 30. Rb8 {[%emt 0:02:18]} Ra2 {[%emt 0:01:23]} 31. Rxf8+ {[%emt 0:01:51]} Kxf8 {[%emt 0:01:33]} 32. Rb7 {[%emt 0:00:04]} a4 {[%emt 0:00:11]} 33. Ra7 {[%emt 0:01:04]} a3 {[%emt 0:00:05]} 34. Kh1 {[%emt 0:00:52]} Ke8 {[%emt 0:00:16]} 35. Kg1 {[%emt 0:00:18]} Kd8 {[%emt 0:00:21]} 36. Kh1 {[%emt 0:09:20]} Kc8 {[%emt 0:00:30]} 37. Kg1 {[%emt 0:00:39]} Kb8 {[%emt 0:00:06]} 38. Ra4 {[%emt 0:00:42]} Kb7 {[%emt 0:00:09]} 39. h3 {[%emt 0:02:34]} Kb6 {[%emt 0:01:43]} 40. Ra8 {[%emt 0:00:28]} Kc5 {[%emt 0:00:14]} 41. Ra7 {[%emt 0:08:08]} Kd4 {[%emt 0:01:27]} 42. Ra8 {[%emt 0:01:44]} Ke3 {[%emt 0:00:07]} 43. Rc8 {[%emt 0:01:15]} Kd4 {[%emt 0:00:22]} 44. Ra8 {[%emt 0:00:29]} Ke4 {[%emt 0:00:10]} 45. Ra4+ {[%emt 0:21:21]} Kf3 {[%emt 0:00:09]} 46. g4 {[%emt 0:00:05]} Kg3 {[%emt 0:01:13]} 47. Kf1 {[%emt 0:00:17]} Ra1+ {[%emt 0:00:06]} 48. Ke2 {[%emt 0:00:21]} a2 {[%emt 0:00:05]} 49. Ra3+ {[%emt 0:00:36]} Kxf4 {[%emt 0:00:07]} 0-1

[Event "44th Chess Olympiad Open 2022"]
[Site "Chennai"]
[Date "2022.08.09"]
[Round "11.43"]
[White "Gemy, Jose Daniel"]
[Black "Gong, Daniel Hanwen"]
[Result "1/2-1/2"]
[ECO "B50"]
[WhiteElo "2373"]
[BlackElo "2296"]
[Annotator "RC"]
[PlyCount "149"]
[EventDate "2022.07.29"]
[EventType "team-tourn"]
[EventCountry "IND"]
[SourceTitle "playchess.com"]
[Source "ChessBase"]
[SourceQuality "1"]
[WhiteTeam "Bolivia"]
[BlackTeam "New Zealand"]
[WhiteTeamCountry "BOL"]
[BlackTeamCountry "NZL"]
[TimeControl "40/5400+30:1800+30"]

1. e4 {[%emt 0:00:06]} c5 {[%emt 0:00:04]} 2. Nf3 {[%emt 0:00:06]} d6 {[%emt 0:00:03]} 3. c3 {[%emt 0:00:41]} Nf6 {[%emt 0:00:05]} 4. h3 {[%emt 0:00:06]} Nbd7 {[%emt 0:01:16]} 5. Bd3 {[%emt 0:01:06]} Qc7 {[%emt 0:03:05]} 6. c4 {[%emt 0:00:56]} Ne5 {[%emt 0:01:56]} 7. Qe2 {[%emt 0:02:14]} Nh5 {[%emt 0:09:17]} 8. g3 {[%emt 0:01:55]} g6 {[%emt 0:02:11]} 9. Nc3 {[%emt 0:00:19]} Bg7 {[%emt 0:01:00]} 10. b3 {[%emt 0:05:07]} Bd7 {[%emt 0:01:32]} 11. Bb2 {[%emt 0:00:23]} Qc8 {[%emt 0:00:43]} 12. Ng1 {[%emt 0:01:19]} a6 {[%emt 0:05:45]} 13. O-O-O {[%emt 0:15:15]} b5 {[%emt 0:04:33]} 14. Nd5 {[%emt 0:00:17]} Nxd3+ {[%emt 0:00:56]} 15. Qxd3 {[%emt 0:00:05]} bxc4 {[%emt 0:00:02]} 16. Qxc4 {[%emt 0:00:47]} Bb5 {[%emt 0:02:00]} 17. Qc2 {[%emt 0:00:09]} Qb7 {[%emt 0:03:10]} 18. d3 {[%emt 0:09:01]} Bc6 {[%emt 0:03:12]} 19. g4 {[%emt 0:00:39]} Nf6 {[%emt 0:01:42]} 20. Nxf6+ {[%emt 0:00:41]} Bxf6 {[%emt 0:00:07]} 21. Bxf6 {[%emt 0:00:24]} exf6 {[%emt 0:00:04]} 22. Qc3 {[%emt 0:00:18]} O-O {[%emt 0:01:50]} 23. Qxf6 {[%emt 0:00:37]} d5 {[%emt 0:00:13]} 24. h4 {[%emt 0:02:12]} Rfe8 {[%emt 0:01:25]} 25. f3 {[%emt 0:15:32]} a5 {[%emt 0:03:58]} 26. h5 {[%emt 0:02:59]} Re6 {[%emt 0:01:03]} 27. Qb2 {[%emt 0:03:36]} a4 {[%emt 0:02:28]} 28. Nh3 {[%emt 0:06:11]} axb3 {[%emt 0:01:24]} 29. axb3 {[%emt 0:01:43]} d4 {[%emt 0:33:56]} 30. Ng5 {[%emt 0:02:16]} Re7 {[%emt 0:00:51]} 31. Nxh7 {[%emt 0:12:54]} Qb4 {[%emt 0:00:09]} 32. Nf6+ {[%emt 0:15:16]} Kg7 {[%emt 0:00:02]} 33. h6+ {[%emt 0:00:33]} Kxf6 {[%emt 0:03:10]} 34. g5+ {[%emt 0:00:02]} Ke6 {[%emt 0:00:58]} 35. h7 {[%emt 0:00:04]} Ree8 {[%emt 0:00:29]} 36. Kc2 {[%emt 0:00:37]} Rh8 {[%emt 0:00:50]} 37. Ra1 {[%emt 0:00:16]} Qb8 {[%emt 0:01:09]} 38. Rxa8 {[%emt 0:00:43]} Qxa8 {[%emt 0:00:04]} 39. b4 {[%emt 0:00:22]} Qa4+ {[%emt 0:00:49]} 40. Qb3+ {[%emt 0:00:23]} Ke5 {[%emt 0:07:01]} 41. Rh4 {[%emt 0:08:49]} cxb4 {[%emt 0:01:37]} 42. Kb2 {[%emt 0:00:07]} Qa3+ {[%emt 0:02:21]} 43. Qxa3 {[%emt 0:00:47]} bxa3+ {[%emt 0:00:04]} 44. Kxa3 {[%emt 0:00:08]} Bb5 {[%emt 0:00:06]} 45. f4+ {[%emt 0:00:54]} Kd6 {[%emt 0:00:10]} 46. Rh3 {[%emt 0:00:10]} Bd7 {[%emt 0:00:04]} 47. Rh4 {[%emt 0:00:19]} Kc5 {[%emt 0:00:19]} 48. Kb3 {[%emt 0:00:43]} Be6+ {[%emt 0:00:20]} 49. Kc2 {[%emt 0:00:16]} Kb4 {[%emt 0:00:21]} 50. Kd2 {[%emt 0:08:36]} Kb3 {[%emt 0:00:33]} 51. Rh1 {[%emt 0:01:25]} Kb2 {[%emt 0:00:37]} 52. Rh4 {[%emt 0:00:58]} Bd7 {[%emt 0:00:03]} 53. Rh2 {[%emt 0:00:34]} Bg4 {[%emt 0:00:18]} 54. Rh4 {[%emt 0:01:59]} Bh5 {[%emt 0:00:39]} 55. f5 {[%emt 0:00:04]} Rxh7 {[%emt 0:00:25]} 56. f6 {[%emt 0:00:14]} Rh8 {[%emt 0:00:26]} 57. e5 {[%emt 0:00:01]} Re8 {[%emt 0:06:31]} 58. Rxh5 {[%emt 0:00:28]} Rxe5 {[%emt 0:08:08]} 59. Rh4 {[%emt 0:02:31]} Rxg5 {[%emt 0:00:37]} 60. Rxd4 {[%emt 0:00:10]} Rf5 {[%emt 0:00:01]} 61. Rb4+ {[%emt 0:01:33]} Ka3 {[%emt 0:00:04]} 62. Rb6 {[%emt 0:00:04]} g5 {[%emt 0:00:08]} 63. Ke3 {[%emt 0:00:34]} g4 {[%emt 0:00:12]} 64. Ke4 {[%emt 0:02:00]} Rf1 {[%emt 0:00:02]} 65. Rb8 {[%emt 0:03:28]} Rxf6 {[%emt 0:00:07]} 66. Rg8 {[%emt 0:00:10]} Rf1 {[%emt 0:00:48]} 67. Ke5 {[%emt 0:02:15]} f5 {[%emt 0:16:14]} 68. d4 {[%emt 0:00:09]} f4 {[%emt 0:01:54]} 69. Rxg4 {[%emt 0:00:31]} f3 {[%emt 0:00:03]} 70. Rg3 {[%emt 0:01:54]} Kb4 {[%emt 0:00:06]} 71. Ke4 {[%emt 0:00:28]} f2 {[%emt 0:00:07]} 72. Kf3 {[%emt 0:00:14]} Kc4 {[%emt 0:00:10]} 73. Rg2 {[%emt 0:00:28]} Kxd4 {[%emt 0:00:06]} 74. Rxf2 {[%emt 0:00:04]} Rxf2+ {[%emt 0:00:03]} 75. Kxf2 {[%emt 0:00:05]} 1/2-1/2

[Event "44th Chess Olympiad Open 2022"]
[Site "Chennai"]
[Date "2022.08.09"]
[Round "11.43"]
[White "Croad, Nicolas"]
[Black "Zambrana, Osvaldo"]
[Result "0-1"]
[ECO "B30"]
[WhiteElo "2289"]
[BlackElo "2417"]
[Annotator "RC"]
[PlyCount "166"]
[EventDate "2022.07.29"]
[EventType "team-tourn"]
[EventCountry "IND"]
[SourceTitle "playchess.com"]
[Source "ChessBase"]
[SourceQuality "1"]
[WhiteTeam "New Zealand"]
[BlackTeam "Bolivia"]
[WhiteTeamCountry "NZL"]
[BlackTeamCountry "BOL"]
[TimeControl "40/5400+30:1800+30"]

1. e4 {[%emt 0:00:03]} c5 {[%emt 0:00:10]} 2. Nf3 {[%emt 0:00:05]} Nc6 {[%emt 0:00:12]} 3. Bb5 {[%emt 0:00:08]} e6 {[%emt 0:00:08]} 4. Bxc6 {[%emt 0:00:13]} bxc6 {[%emt 0:00:05]} 5. d3 {[%emt 0:00:06]} Qc7 {[%emt 0:00:47]} 6. Qe2 {[%emt 0:00:13]} Ne7 {[%emt 0:01:26]} 7. e5 {[%emt 0:04:07]} Ng6 {[%emt 0:04:14]} 8. h4 {[%emt 0:03:12]} f6 {[%emt 0:00:13]} 9. exf6 {[%emt 0:03:37]} gxf6 {[%emt 0:00:05]} 10. h5 {[%emt 0:05:06]} Nf4 {[%emt 0:08:16]} 11. Qe4 {[%emt 0:02:21]} Bh6 {[%emt 0:00:27]} 12. Kf1 {[%emt 0:03:15]} d5 {[%emt 0:03:58]} 13. Qa4 {[%emt 0:02:22]} e5 {[%emt 0:46:07]} 14. Nc3 {[%emt 0:06:09]} Kf7 {[%emt 0:03:06]} 15. g3 {[%emt 0:04:45]} Rb8 {[%emt 0:00:19]} 16. a3 {[%emt 0:08:29]} Bg4 {[%emt 0:07:43]} 17. gxf4 {[%emt 0:15:24]} Bxf3 {[%emt 0:00:29]} 18. Rh3 {[%emt 0:00:04]} Bg4 {[%emt 0:06:23]} 19. Rg3 {[%emt 0:00:06]} Bd7 {[%emt 0:01:18]} 20. fxe5 {[%emt 0:01:35]} Bxc1 {[%emt 0:04:13]} 21. Rxc1 {[%emt 0:00:08]} Rhg8 {[%emt 0:00:08]} 22. Re1 {[%emt 0:04:14]} Rxg3 {[%emt 0:00:27]} 23. fxg3 {[%emt 0:00:04]} fxe5 {[%emt 0:00:28]} 24. Qh4 {[%emt 0:02:01]} Qd6 {[%emt 0:02:16]} 25. Re2 {[%emt 0:02:22]} h6 {[%emt 0:00:09]} 26. Rf2+ {[%emt 0:01:12]} Kg7 {[%emt 0:00:12]} 27. Nd1 {[%emt 0:16:12]} Rf8 {[%emt 0:01:34]} 28. Kg2 {[%emt 0:00:38]} Rxf2+ {[%emt 0:01:17]} 29. Nxf2 {[%emt 0:00:04]} Qf6 {[%emt 0:00:24]} 30. Qxf6+ {[%emt 0:01:47]} Kxf6 {[%emt 0:00:03]} 31. g4 {[%emt 0:00:11]} Be6 {[%emt 0:01:37]} 32. Kg3 {[%emt 0:00:17]} Bg8 {[%emt 0:00:15]} 33. Nd1 {[%emt 0:07:17]} Kg5 {[%emt 0:00:35]} 34. Nf2 {[%emt 0:00:33]} Bh7 {[%emt 0:00:22]} 35. Nh3+ {[%emt 0:00:43]} Kf6 {[%emt 0:00:03]} 36. Nf2 {[%emt 0:03:02]} c4 {[%emt 0:00:27]} 37. b3 {[%emt 0:02:37]} cxb3 {[%emt 0:00:57]} 38. cxb3 {[%emt 0:00:01]} a5 {[%emt 0:06:23]} 39. b4 {[%emt 0:00:15]} a4 {[%emt 0:00:35]} 40. Kf3 {[%emt 0:00:20]} Bxd3 {[%emt 0:01:22]} 41. Nxd3 {[%emt 0:32:08]} e4+ {[%emt 0:30:02]} 42. Ke3 {[%emt 0:00:04]} exd3 {[%emt 0:00:11]} 43. Kxd3 {[%emt 0:00:02]} Kg5 {[%emt 0:00:11]} 44. Kd4 {[%emt 0:00:19]} Kxg4 {[%emt 0:00:09]} 45. Kc5 {[%emt 0:00:02]} Kxh5 {[%emt 0:00:00]} 46. Kxc6 {[%emt 0:00:00]} d4 {[%emt 0:00:00]} 47. b5 {[%emt 0:00:00]} d3 {[%emt 0:00:00]} 48. b6 {[%emt 0:00:00]} d2 {[%emt 0:00:00]} 49. b7 {[%emt 0:00:00]} d1=Q {[%emt 0:00:00]} 50. b8=Q {[%emt 0:00:00]} Qf3+ {[%emt 0:00:00]} 51. Kd7 {[%emt 0:00:00]} Qd3+ {[%emt 0:00:00]} 52. Kc6 {[%emt 0:00:00]} Qc3+ {[%emt 0:00:00]} 53. Kd7 {[%emt 0:00:00]} Qxa3 {[%emt 0:00:00]} 54. Qe5+ {[%emt 0:00:00]} Kg4 {[%emt 0:00:00]} 55. Qe6+ {[%emt 0:00:00]} Kg3 {[%emt 0:00:00]} 56. Qxh6 {[%emt 0:00:00]} Qd3+ {[%emt 0:00:00]} 57. Kc7 {[%emt 0:00:00]} a3 {[%emt 0:00:00]} 58. Qg5+ {[%emt 0:00:00]} Kf3 {[%emt 0:00:00]} 59. Qh5+ {[%emt 0:00:00]} Ke3 {[%emt 0:00:00]} 60. Qg5+ {[%emt 0:00:00]} Ke2 {[%emt 0:00:00]} 61. Kb7 {[%emt 0:00:00]} Qe4+ {[%emt 0:00:00]} 62. Kb8 {[%emt 0:00:00]} a2 {[%emt 0:03:54]} 63. Qb5+ {[%emt 0:00:00]} Kd1 {[%emt 0:00:08]} 64. Qb3+ {[%emt 0:01:52]} Qc2 {[%emt 0:00:03]} 65. Qf3+ {[%emt 0:04:00]} Kc1 {[%emt 0:00:24]} 66. Qf1+ {[%emt 0:01:06]} Kb2 {[%emt 0:00:33]} 67. Qf6+ {[%emt 0:00:06]} Qc3 {[%emt 0:00:25]} 68. Qf2+ {[%emt 0:00:13]} Kb3 {[%emt 0:02:17]} 69. Qf7+ {[%emt 0:00:16]} Qc4 {[%emt 0:00:22]} 70. Qf3+ {[%emt 0:00:31]} Ka4 {[%emt 0:00:10]} 71. Qf6 {[%emt 0:04:05]} Kb3 {[%emt 0:00:52]} 72. Qf3+ {[%emt 0:00:03]} Kb4 {[%emt 0:00:08]} 73. Qf8+ {[%emt 0:00:46]} Qc5 {[%emt 0:02:28]} 74. Qf6 {[%emt 0:04:11]} Ka5 {[%emt 0:00:05]} 75. Kb7 {[%emt 0:01:19]} Qd5+ {[%emt 0:02:26]} 76. Ka7 {[%emt 0:01:00]} Qd7+ {[%emt 0:02:20]} 77. Ka8 {[%emt 0:00:16]} Qa4 {[%emt 0:00:24]} 78. Kb7 {[%emt 0:00:16]} Qe4+ {[%emt 0:00:48]} 79. Ka7 {[%emt 0:00:12]} Qe3+ {[%emt 0:00:37]} 80. Kb7 {[%emt 0:00:57]} Qb3+ {[%emt 0:00:03]} 81. Ka7 {[%emt 0:00:10]} Qa3 {[%emt 0:00:39]} 82. Qb6+ {[%emt 0:01:25]} Ka4 {[%emt 0:00:06]} 83. Ka6 {[%emt 0:00:04]} Qd3+ {[%emt 0:00:08]} 0-1

[Event "44th Chess Olympiad Open 2022"]
[Site "Chennai"]
[Date "2022.08.09"]
[Round "11.43"]
[White "Mendoza, Rodrigo"]
[Black "Xie, Felix"]
[Result "1-0"]
[ECO "D31"]
[WhiteElo "2215"]
[BlackElo "2224"]
[Annotator "RC"]
[PlyCount "105"]
[EventDate "2022.07.29"]
[EventType "team-tourn"]
[EventCountry "IND"]
[SourceTitle "playchess.com"]
[Source "ChessBase"]
[SourceQuality "1"]
[WhiteTeam "Bolivia"]
[BlackTeam "New Zealand"]
[WhiteTeamCountry "BOL"]
[BlackTeamCountry "NZL"]
[TimeControl "40/5400+30:1800+30"]

1. c4 {[%emt 0:00:03]} e6 {[%emt 0:00:15]} 2. d4 {[%emt 0:00:10]} d5 {[%emt 0:00:07]} 3. Nc3 {[%emt 0:00:06]} Be7 {[%emt 0:00:05]} 4. e4 {[%emt 0:01:38]} dxe4 {[%emt 0:00:21]} 5. Nxe4 {[%emt 0:00:14]} Nf6 {[%emt 0:00:04]} 6. Nc3 {[%emt 0:00:23]} O-O {[%emt 0:01:36]} 7. Nf3 {[%emt 0:00:56]} b6 {[%emt 0:06:42]} 8. Be3 {[%emt 0:04:33]} Bb7 {[%emt 0:01:37]} 9. Qc2 {[%emt 0:02:30]} Na6 {[%emt 0:03:11]} 10. Rd1 {[%emt 0:05:43]} Qe8 {[%emt 0:02:28]} 11. Be2 {[%emt 0:03:56]} Nb4 {[%emt 0:17:31]} 12. Qb1 {[%emt 0:02:30]} c5 {[%emt 0:17:55]} 13. O-O {[%emt 0:02:55]} cxd4 {[%emt 0:05:37]} 14. Bxd4 {[%emt 0:00:45]} Nc6 {[%emt 0:01:44]} 15. Be3 {[%emt 0:00:46]} Rd8 {[%emt 0:00:40]} 16. a3 {[%emt 0:30:26]} Rxd1 {[%emt 0:07:20]} 17. Rxd1 {[%emt 0:00:01]} Qb8 {[%emt 0:00:01]} 18. Qc1 {[%emt 0:06:56]} Ng4 {[%emt 0:15:13]} 19. Bg5 {[%emt 0:10:15]} f6 {[%emt 0:04:34]} 20. Bh4 {[%emt 0:00:15]} Bd6 {[%emt 0:00:10]} 21. h3 {[%emt 0:05:38]} Nh6 {[%emt 0:01:54]} 22. c5 {[%emt 0:07:39]} Bf4 {[%emt 0:02:55]} 23. Qc2 {[%emt 0:02:04]} g5 {[%emt 0:00:17]} 24. Bg3 {[%emt 0:10:03]} Bxg3 {[%emt 0:00:07]} 25. fxg3 {[%emt 0:00:02]} Qxg3 {[%emt 0:02:35]} 26. Bc4 {[%emt 0:00:39]} Nd8 {[%emt 0:02:00]} 27. Rd7 {[%emt 0:00:06]} Nhf7 {[%emt 0:00:05]} 28. Ne2 {[%emt 0:01:05]} Qb8 {[%emt 0:01:22]} 29. cxb6 {[%emt 0:01:02]} Bxf3 {[%emt 0:01:04]} 30. gxf3 {[%emt 0:00:14]} Qxb6+ {[%emt 0:00:04]} 31. Kg2 {[%emt 0:00:00]} Re8 {[%emt 0:02:58]} 32. Ng3 {[%emt 0:00:43]} Qe3 {[%emt 0:02:12]} 33. Nh5 {[%emt 0:00:35]} Qe5 {[%emt 0:00:08]} 34. Qc3 {[%emt 0:00:11]} Qxc3 {[%emt 0:01:13]} 35. bxc3 {[%emt 0:00:02]} Kf8 {[%emt 0:00:32]} 36. Nxf6 {[%emt 0:00:52]} Re7 {[%emt 0:00:04]} 37. Nxh7+ {[%emt 0:00:07]} Ke8 {[%emt 0:00:03]} 38. Nf6+ {[%emt 0:00:06]} Kf8 {[%emt 0:00:03]} 39. Kg3 {[%emt 0:02:23]} Ne5 {[%emt 0:00:47]} 40. Rxd8+ {[%emt 0:00:10]} Kf7 {[%emt 0:00:09]} 41. Ng8 {[%emt 0:30:39]} Rc7 {[%emt 0:30:07]} 42. Be2 {[%emt 0:01:12]} Rxc3 {[%emt 0:00:13]} 43. Nh6+ {[%emt 0:00:17]} Ke7 {[%emt 0:00:06]} 44. Rg8 {[%emt 0:00:37]} Kf6 {[%emt 0:00:58]} 45. Ng4+ {[%emt 0:00:37]} Nxg4 {[%emt 0:00:04]} 46. hxg4 {[%emt 0:00:26]} Rxa3 {[%emt 0:00:04]} 47. Ra8 {[%emt 0:00:36]} a5 {[%emt 0:00:08]} 48. Ra6 {[%emt 0:00:08]} Re3 {[%emt 0:00:33]} 49. Kf2 {[%emt 0:00:07]} Re5 {[%emt 0:00:08]} 50. Bd3 {[%emt 0:00:06]} Rc5 {[%emt 0:00:07]} 51. Ke3 {[%emt 0:00:07]} Ke5 {[%emt 0:00:04]} 52. Rb6 {[%emt 0:00:22]} Kf6 {[%emt 0:01:32]} 53. Rb5 {[%emt 0:00:16]} 1-0

[Event "44th Chess Olympiad Open 2022"]
[Site "Chennai"]
[Date "2022.08.09"]
[Round "11.43"]
[White "Stark, John"]
[Black "Bolanos, Fernando"]
[Result "0-1"]
[ECO "A06"]
[WhiteElo "2028"]
[BlackElo "2258"]
[Annotator "RC"]
[PlyCount "82"]
[EventDate "2022.07.29"]
[EventType "team-tourn"]
[EventCountry "IND"]
[SourceTitle "playchess.com"]
[Source "ChessBase"]
[SourceQuality "1"]
[WhiteTeam "New Zealand"]
[BlackTeam "Bolivia"]
[WhiteTeamCountry "NZL"]
[BlackTeamCountry "BOL"]
[TimeControl "40/5400+30:1800+30"]

1. b3 {[%emt 0:00:02]} d5 {[%emt 0:00:55]} 2. Bb2 {[%emt 0:00:12]} Bf5 {[%emt 0:00:14]} 3. e3 {[%emt 0:00:45]} e6 {[%emt 0:00:12]} 4. Nf3 {[%emt 0:02:27]} Nd7 {[%emt 0:00:10]} 5. Be2 {[%emt 0:00:56]} h6 {[%emt 0:00:08]} 6. O-O {[%emt 0:00:27]} Ngf6 {[%emt 0:00:09]} 7. d4 {[%emt 0:06:54]} Bd6 {[%emt 0:00:40]} 8. c4 {[%emt 0:00:14]} c6 {[%emt 0:00:04]} 9. Nbd2 {[%emt 0:00:46]} O-O {[%emt 0:00:11]} 10. Ne5 {[%emt 0:01:14]} Qe7 {[%emt 0:00:21]} 11. c5 {[%emt 0:06:09]} Bc7 {[%emt 0:00:18]} 12. b4 {[%emt 0:00:16]} a6 {[%emt 0:00:05]} 13. f4 {[%emt 0:02:11]} Ne4 {[%emt 0:02:45]} 14. Nxe4 {[%emt 0:03:02]} Bxe4 {[%emt 0:01:53]} 15. Nxd7 {[%emt 0:09:13]} Qxd7 {[%emt 0:00:33]} 16. Bd3 {[%emt 0:00:03]} a5 {[%emt 0:05:07]} 17. Bxe4 {[%emt 0:03:03]} dxe4 {[%emt 0:00:06]} 18. f5 {[%emt 0:10:01]} exf5 {[%emt 0:04:46]} 19. Qh5 {[%emt 0:00:50]} f4 {[%emt 0:00:21]} 20. exf4 {[%emt 0:01:36]} f5 {[%emt 0:04:46]} 21. b5 {[%emt 0:07:11]} Qd5 {[%emt 0:09:29]} 22. b6 {[%emt 0:01:59]} Bd8 {[%emt 0:07:44]} 23. Qe2 {[%emt 0:00:14]} Bf6 {[%emt 0:00:17]} 24. Rfd1 {[%emt 0:00:22]} a4 {[%emt 0:00:16]} 25. Bc3 {[%emt 0:02:06]} Rfd8 {[%emt 0:02:36]} 26. a3 {[%emt 0:04:54]} Qb3 {[%emt 0:02:56]} 27. Qa2 {[%emt 0:05:53]} Rd5 {[%emt 0:10:37]} 28. Qxb3 {[%emt 0:03:21]} axb3 {[%emt 0:00:11]} 29. a4 {[%emt 0:00:04]} Rad8 {[%emt 0:00:37]} 30. a5 {[%emt 0:03:11]} Bxd4+ {[%emt 0:03:50]} 31. Bxd4 {[%emt 0:00:07]} Rxd4 {[%emt 0:00:03]} 32. Rdb1 {[%emt 0:05:20]} e3 {[%emt 0:18:12]} 33. Kf1 {[%emt 0:11:53]} Rd2 {[%emt 0:01:07]} 34. Re1 {[%emt 0:07:35]} b2 {[%emt 0:09:34]} 35. Rab1 {[%emt 0:01:32]} R8d3 {[%emt 0:00:11]} 36. a6 {[%emt 0:00:25]} bxa6 {[%emt 0:00:15]} 37. b7 {[%emt 0:00:42]} Rb3 {[%emt 0:00:05]} 38. Rxe3 {[%emt 0:00:14]} Rxb7 {[%emt 0:00:04]} 39. h4 {[%emt 0:02:04]} a5 {[%emt 0:01:10]} 40. h5 {[%emt 0:00:27]} Rc2 {[%emt 0:00:46]} 41. Ree1 {[%emt 0:03:48]} a4 {[%emt 0:02:00]} 0-1